fUST/lending_fUST_20260612
["ID","MTS","AMOUNT","RATE_DAILY","PERIOD"]
[424912677,1781267450000,-500.0,0.0003726,18]
[424912679,1781267450000,-500.0,0.0003726,18]
[424912680,1781267450000,-1767.66,0.0003726,18]
[424912678,1781267450000,-1069.05,0.0003726,18]
[424912689,1781267450000,-712.94,0.0003726,18]
[424912681,1781267450000,-2082.45,0.0003726,18]
[424912682,1781267450000,-500.0,0.0003726,18]
[424912684,1781267450000,-2758.48,0.0003726,11]
[424912690,1781267450000,-543.79,0.0003726,18]
[424912705,1781267450000,-1493.0,0.0003726,18]
[424912687,1781267450000,-500.0,0.0003726,18]
[424912691,1781267450000,-4806.79,0.0003726,18]
[424912693,1781267450000,-2453.16,0.0003726,18]
[424912692,1781267450000,-1600.58,0.0003726,18]
[424912703,1781267450000,-500.0,0.0003726,18]
[424912695,1781267450000,-7476.56,0.0003726,18]
[424912696,1781267450000,-5574.16,0.0003726,18]
[424912704,1781267450000,-3531.27,0.0003726,18]
[424912694,1781267450000,-500.0,0.0003726,18]
[424912699,1781267450000,-1686.86,0.0003726,18]
[424912700,1781267450000,-1406.84,0.0003726,18]
[424912697,1781267450000,-1088.18,0.0003726,18]
[424912698,1781267450000,-682.8,0.0003726,18]
[424912702,1781267450000,-500.0,0.0003726,18]
[424912686,1781267450000,-3479.95,0.0003726,18]
[424912752,1781267450000,-967.03,0.00037534,18]
[424912753,1781267450000,-500.0,0.00037534,18]
[424912748,1781267450000,-500.0,0.00037534,18]
[424912793,1781267450000,-515.8,0.00037534,18]
[424912792,1781267450000,-500.0,0.00037534,18]
[424912796,1781267450000,-1139.38,0.00037534,18]
[424912798,1781267450000,-1395.61,0.00037534,18]
[424912801,1781267450000,-29194.82,0.00037534,18]
[424912797,1781267450000,-2843.87,0.00037534,18]
[424912799,1781267450000,-606.07,0.00037534,18]
[424912795,1781267450000,-500.0,0.00037534,18]
[424912800,1781267450000,-500.0,0.00037534,18]
[424912803,1781267450000,-500.0,0.00037534,18]
[424912802,1781267450000,-500.0,0.00037534,18]
[424912805,1781267450000,-2558.77,0.00037534,18]
[424912815,1781267450000,-500.0,0.00037534,18]
[424912806,1781267450000,-823.38,0.00037534,2]
[424912808,1781267450000,-2042.66,0.00037534,18]
[424912807,1781267450000,-1105.4,0.00037534,18]
[424912804,1781267450000,-4576.94,0.00037534,18]
[424912809,1781267450000,-1158.95,0.00037534,18]
[424912811,1781267450000,-1863.25,0.00037534,18]
[424912812,1781267450000,-500.0,0.00037534,18]
[424912814,1781267450000,-1075.26,0.00037534,18]
[424912810,1781267450000,-3598.32,0.00037534,18]
[424912813,1781267450000,-5926.29,0.00037534,18]
[424912816,1781267450000,-635.37,0.00037534,18]
[424912817,1781267450000,-1342.5,0.00037534,18]
[424912821,1781267450000,-1069.05,0.00037534,18]
[424912818,1781267450000,-500.0,0.00037534,18]
[424912743,1781267450000,-188.43411242,0.00037534,18]
[424912820,1781267450000,-500.0,0.00037534,18]
[424912794,1781267450000,-500.0,0.00037534,18]
[424912791,1781267450000,-515.62,0.00037534,18]
[424912819,1781267450000,-2489.56,0.00037534,18]
[424912788,1781267450000,-1153.42,0.00037534,18]
[424912783,1781267450000,-500.0,0.00037534,18]
[424912755,1781267450000,-931.25,0.00037534,18]
[424912750,1781267450000,-1558.83,0.00037534,18]
[424912747,1781267450000,-500.0,0.00037534,18]
[424912757,1781267450000,-500.0,0.00037534,18]
[424912759,1781267450000,-1302.88,0.00037534,18]
[424912762,1781267450000,-500.0,0.00037534,18]
[424912760,1781267450000,-755.84,0.00037534,18]
[424912766,1781267450000,-500.0,0.00037534,6]
[424912773,1781267450000,-372.71889015,0.00037534,18]
[424912764,1781267450000,-2123.25,0.00037534,18]
[424912768,1781267450000,-500.0,0.00037534,18]
[424912776,1781267450000,-500.0,0.00037534,18]
[424912777,1781267450000,-1251.12,0.00037534,18]
[424912770,1781267450000,-1964.23,0.00037534,18]
[424912771,1781267450000,-500.0,0.00037534,18]
[424912782,1781267450000,-500.0,0.00037534,18]
[424912786,1781267450000,-500.0,0.00037534,18]
[424912784,1781267450000,-4022.67,0.00037534,18]
[424912774,1781267450000,-507.86,0.00037534,18]
[424912787,1781267450000,-500.0,0.00037534,18]
[424912781,1781267450000,-500.0,0.00037534,18]
[424912780,1781267450000,-520.75,0.00037534,18]
[424912785,1781267450000,-748.35,0.00037534,18]
[424912789,1781267450000,-745.16,0.00037534,18]
[424912790,1781267450000,-500.0,0.00037534,18]
[424912779,1781267450000,-770.11,0.00037534,18]
[424912775,1781267450000,-637.26,0.00037534,18]
[424912769,1781267450000,-597.66,0.00037534,18]
[424912778,1781267450000,-1324.22,0.00037534,18]
[424912840,1781267451000,-500.0,0.00022373,2]
[424912824,1781267451000,-2082.45,0.00037534,18]
[424912825,1781267451000,-500.0,0.00037534,18]
[424912827,1781267451000,-243.31242023,0.00037534,18]
[424912822,1781267451000,-500.0,0.00037534,18]
[424912823,1781267451000,-1767.66,0.00037534,18]
[424912829,1781267451000,-500.0,0.00022373,2]
[424912839,1781267451000,-500.0,0.00022373,2]
[424912842,1781267451000,-500.0,0.00022373,2]
[424912826,1781267451000,-2758.48,0.00037534,11]
[424912844,1781267451000,-500.0,0.00022373,2]
[424912831,1781267451000,-500.0,0.00022373,2]
[424912833,1781267451000,-565.47963254,0.00022373,2]
[424912845,1781267451000,-403.01218363,0.00022373,2]
[424912835,1781267451000,-500.0,0.00022373,2]
[424912837,1781267451000,-500.0,0.00022373,2]
[424912849,1781267451000,-500.0,0.00022373,2]
[424912848,1781267451000,-96.98781637,0.00022373,2]
[424912850,1781267451000,-397.0862848,0.00022373,2]
[424912828,1781267451000,-500.0,0.00022373,2]
[424912862,1781267508000,161.71,0.00016,2]
[424913011,1781268632000,-161.71,0.00016,2]
[424913010,1781268632000,-4530.31832579,0.0001584,2]
[424913012,1781268632000,-129.66773243,0.00022689,2]
[424913009,1781268632000,-469.68167421,0.0001584,2]
[424913074,1781268638000,-198.22590811,0.00025346,2]
[424913072,1781268638000,-1068.63914955,0.000253,2]
[424913068,1781268638000,-59.81226757,0.00022689,2]
[424913070,1781268638000,-331.77,0.000244,2]
[424913105,1781268639000,-1068.63914955,0.000269,2]
[424913093,1781268639000,-1068.63914955,0.000256,2]
[424913091,1781268639000,-218.92881974,0.00025346,2]
[424913097,1781268639000,-1068.63914955,0.000259,2]
[424913099,1781268639000,-1068.63914955,0.000261,2]
[424913095,1781268639000,-259.65,0.000259,3]
[424913101,1781268639000,-1068.63914955,0.000264,2]
[424913108,1781268639000,-399.1855538,0.00027309,2]
[424913110,1781268639000,-1068.63914955,0.000274,2]
[424913107,1781268639000,-1068.63914955,0.000272,2]
[424913114,1781268639000,-152.0,0.00028524,7]
[424913116,1781268639000,-166.3153537,0.00030118,2]
[424913112,1781268639000,-1068.63914955,0.000277,2]
[424913119,1781268639000,-354.49653246,0.0003159,2]
[424913121,1781268639000,-50454.14331282,0.00034888,10]
[424913124,1781268639000,-11904.95004378,0.00034888,10]
[424913125,1781268639000,-17859.88217797,0.00034888,10]
[424913103,1781268639000,-1068.63914955,0.000266,2]
[424913357,1781268641000,-3162.5,0.00034888,10]
[424913824,1781268646000,-2774.17045716,0.00034888,10]
[424914756,1781269039000,5000.0,0.00024658,30]
[424914757,1781269062000,5000.0,0.00024658,30]
[424914758,1781269085000,5000.0,0.00024658,30]
[424914797,1781269831000,-500.0,0.0001881,2]
[424914795,1781269831000,-964.31937778,0.00018436,9]
[424914800,1781269831000,-301.91555454,0.00021,2]
[424914796,1781269831000,-4035.68062222,0.00018436,9]
[424914798,1781269831000,-163.86655957,0.0001881,2]
[424914801,1781269831000,-500.0,0.00024162,2]
[424914803,1781269831000,-500.0,0.00024162,2]
[424914799,1781269831000,-3698.08444546,0.00021,2]
[424914809,1781269831000,-500.0,0.00024162,2]
[424914807,1781269831000,-500.0,0.00024162,2]
[424914804,1781269831000,-500.0,0.00024162,2]
[424914808,1781269831000,-500.0,0.00024162,2]
[424914806,1781269831000,-500.0,0.00024162,2]
[424914810,1781269831000,-202.98366984,0.00024162,2]
[424914805,1781269831000,-500.0,0.00024162,2]
[424914802,1781269831000,-219.28750604,0.00024162,2]
[424914811,1781269832000,-297.01633016,0.00024162,2]
[424914813,1781269832000,-44.34119148,0.00024162,2]
[424914812,1781269832000,-500.0,0.00024162,2]
[424914832,1781269838000,-500.0,0.00024162,2]
[424914829,1781269838000,-500.0,0.00024162,2]
[424914837,1781269838000,-500.0,0.00024162,2]
[424914841,1781269838000,-500.0,0.00024162,2]
[424914838,1781269838000,-500.0,0.00024162,2]
[424914839,1781269838000,-500.0,0.00024162,2]
[424914836,1781269838000,-454.30698108,0.00024162,2]
[424914834,1781269838000,-500.0,0.00024162,2]
[424914826,1781269838000,-500.0,0.00024162,2]
[424914828,1781269838000,-583.12110107,0.00024162,2]
[424914827,1781269838000,-500.0,0.00024162,2]
[424914823,1781269838000,-160.74522941,0.00024162,2]
[424914846,1781269838000,-500.0,0.00024162,2]
[424914822,1781269838000,-455.65880852,0.00024162,2]
[424914824,1781269838000,-500.0,0.00024162,2]
[424914825,1781269838000,-500.0,0.00024162,2]
[424914830,1781269838000,-500.0,0.00024162,2]
[424914842,1781269838000,-500.0,0.00024162,2]
[424914835,1781269838000,-500.0,0.00024162,2]
[424914848,1781269838000,-500.0,0.00024162,2]
[424914864,1781269838000,-3000.0,0.0002542,2]
[424914861,1781269838000,-3000.0,0.000254,2]
[424914863,1781269838000,-194.53,0.0002541,10]
[424914865,1781269838000,-3000.0,0.0002543,2]
[424914862,1781269838000,-3000.0,0.0002541,2]
[424914855,1781269838000,-277.3684049,0.00024163,2]
[424914852,1781269838000,-500.0,0.00024162,2]
[424914844,1781269838000,-500.0,0.00024162,2]
[424914850,1781269838000,-500.0,0.00024162,2]
[424914849,1781269838000,-500.0,0.00024162,2]
[424914853,1781269838000,-500.0,0.00024162,2]
[424914851,1781269838000,-500.0,0.00024162,2]
[424914866,1781269838000,-588.43725717,0.0002544,2]
[424914859,1781269838000,-156.0,0.000253,2]
[424914860,1781269838000,-1005.614764,0.00025399,2]
[424914857,1781269838000,-3827.35176765,0.00024166,2]
[424914858,1781269838000,-3983.28449128,0.00024166,2]
[424914856,1781269838000,-4500.0,0.00024166,2]
[424914854,1781269838000,-500.0,0.00024162,2]
[424914891,1781269840000,-954.63932051,0.0002392,9]
[424914890,1781269840000,-2106.40144417,0.0002392,9]
[424914903,1781269843000,-1468.24592546,0.0002392,9]
[424914902,1781269843000,-470.71330986,0.0002392,9]
[424914904,1781269843000,-786.01416611,0.0002544,2]
[424914972,1781269846000,-947.17628255,0.00025489,2]
[424914967,1781269846000,-1386.57570557,0.00025489,2]
[424914963,1781269846000,-1386.57570557,0.00025489,2]
[424914969,1781269846000,-439.39942302,0.00025489,2]
[424914965,1781269846000,-1386.57570557,0.00025489,2]
[424914973,1781269846000,-1386.57570557,0.00025489,2]
[424914957,1781269846000,-500.0,0.00025489,2]
[424914959,1781269846000,-1386.57570557,0.00025489,2]
[424914961,1781269846000,-1386.57570557,0.00025489,2]
[424914956,1781269846000,-1386.57570557,0.00025489,2]
[424914952,1781269846000,-212.12206242,0.00025489,2]
[424914944,1781269846000,-3000.0,0.0002545,2]
[424914942,1781269846000,-1625.54857672,0.0002544,2]
[424914950,1781269846000,-3000.0,0.0002548,2]
[424914946,1781269846000,-3000.0,0.0002546,2]
[424914948,1781269846000,-3000.0,0.0002547,2]
[424914954,1781269846000,-1386.57570557,0.00025489,2]
[424914978,1781269846000,-990.84223643,0.00025489,2]
[424915000,1781269846000,-1439.90554041,0.00025489,2]
[424914980,1781269846000,-1386.57570557,0.00025489,2]
[424915008,1781269846000,-1439.90554041,0.00025489,2]
[424915016,1781269846000,-193.03699847,0.00025489,2]
[424915014,1781269846000,-1563.64742278,0.00025489,2]
[424915011,1781269846000,-1439.90554041,0.00025489,2]
[424914975,1781269846000,-395.73346914,0.00025489,2]
[424915004,1781269846000,-1439.90554041,0.00025489,2]
[424915002,1781269846000,-1439.90554041,0.00025489,2]
[424914985,1781269846000,-616.99364757,0.00025489,2]
[424915006,1781269846000,-1439.90554041,0.00025489,2]
[424914989,1781269846000,-1386.57570557,0.00025489,2]
[424914982,1781269846000,-769.582058,0.00025489,2]
[424914987,1781269846000,-1386.57570557,0.00025489,2]
[424914992,1781269846000,-1386.57570557,0.00025489,2]
[424914996,1781269846000,-1439.90554041,0.00025489,2]
[424914994,1781269846000,-1386.57570557,0.00025489,2]
[424914991,1781269846000,-1386.57570557,0.00025489,2]
[424914998,1781269846000,-1439.90554041,0.00025489,2]
[424915012,1781269846000,-1563.64742278,0.00025489,2]
[424915747,1781271031000,-5000.0,0.00022152,9]
[424915754,1781271032000,-175.67819167,0.00025428,2]
[424915758,1781271032000,-3000.0,0.000255,2]
[424915749,1781271032000,-172.821089,0.00024742,2]
[424915753,1781271032000,-847.65711096,0.0002542,2]
[424915751,1781271032000,-417.15472785,0.0002542,2]
[424915760,1781271032000,-3000.0,0.0002551,2]
[424915756,1781271032000,-3000.0,0.0002549,2]
[424915764,1781271032000,-500.0,0.00025528,2]
[424915766,1781271032000,-500.0,0.00025528,2]
[424915768,1781271032000,-500.0,0.00025528,2]
[424915771,1781271032000,-500.0,0.00025528,2]
[424915769,1781271032000,-500.0,0.00025528,2]
[424915779,1781271032000,-317.63901,0.00025528,2]
[424915777,1781271032000,-40.59693001,0.00025528,2]
[424915775,1781271032000,-500.0,0.00025528,2]
[424915773,1781271032000,-500.0,0.00025528,2]
[424915762,1781271032000,-3000.0,0.0002552,2]
[424915887,1781271038000,-237.60621909,0.00025528,2]
[424915891,1781271038000,-500.0,0.00025528,2]
[424915885,1781271038000,-500.0,0.00025528,2]
[424915878,1781271038000,-500.0,0.00025528,2]
[424915880,1781271038000,-500.0,0.00025528,2]
[424915883,1781271038000,-500.0,0.00025528,2]
[424915874,1781271038000,-392.19877446,0.00025528,2]
[424915866,1781271038000,-500.0,0.00025528,2]
[424915870,1781271038000,-500.0,0.00025528,2]
[424915872,1781271038000,-39.00006314,0.00025528,2]
[424915868,1781271038000,-500.0,0.00025528,2]
[424915862,1781271038000,-287.51336202,0.0002193,9]
[424915847,1781271038000,-2866.49295455,0.0002193,9]
[424915841,1781271038000,-418.36,0.0002193,9]
[424915897,1781271038000,-312.03572178,0.00025528,2]
[424915864,1781271038000,-92.64518133,0.00025528,2]
[424915893,1781271038000,-500.0,0.00025528,2]
[424915876,1781271038000,-500.0,0.00025528,2]
[424915895,1781271038000,-500.0,0.00025528,2]
[424915918,1781271038000,-4141.636237,0.0002559,2]
[424915919,1781271038000,-1901.0,0.000256,2]
[424915932,1781271038000,-88.24321368,0.00029741,2]
[424915930,1781271038000,-847.65711094,0.00028661,2]
[424915889,1781271038000,-500.0,0.00025528,2]
[424915915,1781271038000,-3000.0,0.0002558,2]
[424915924,1781271038000,-731.2778494,0.0002732,2]
[424915926,1781271038000,-731.2778494,0.00027578,2]
[424915927,1781271038000,-847.65711094,0.0002758,2]
[424915913,1781271038000,-1732.7656075,0.0002557,2]
[424915911,1781271038000,-1267.2343925,0.0002557,2]
[424915909,1781271038000,-3000.0,0.0002556,2]
[424915907,1781271038000,-3000.0,0.0002555,2]
[424915901,1781271038000,-192.223,0.00025529,10]
[424915903,1781271038000,-3000.0,0.0002553,2]
[424915899,1781271038000,-500.0,0.00025528,2]
[424915905,1781271038000,-3000.0,0.0002554,2]
[424915922,1781271038000,-847.65711094,0.000265,2]
[424916070,1781271040000,-362.31906355,0.00029741,2]
[424916081,1781271040000,-597.65794968,0.00031901,2]
[424916078,1781271040000,-847.65711094,0.00030821,2]
[424916077,1781271040000,-397.09483371,0.00029741,2]
[424916410,1781271043000,-516.67756588,0.00032982,2]
[424916409,1781271043000,-175.67819165,0.00032664,2]
[424916408,1781271043000,-249.99916126,0.00031901,2]
[424916696,1781271046000,-252.95434047,0.00034,120]
[424916694,1781271046000,-330.97954506,0.00032982,2]
[424916704,1781271046000,-7408.94175514,0.00034888,10]
[424916700,1781271046000,-7135.90550421,0.00034888,10]
[424916698,1781271046000,-847.65711094,0.00034062,2]
[424919286,1781271437000,5000.0,0.00024658,30]
[424919287,1781271454000,702.47520099,0.00024658,30]
[424919319,1781272232000,-316.63701,0.00022569,9]
[424919429,1781272240000,-285.57883808,0.00023495,7]
[424919435,1781272240000,-1864.25205336,0.00034839,2]
[424919431,1781272240000,-371.57797289,0.00024423,7]
[424919439,1781272240000,-28584.15228514,0.00034888,10]
[424919437,1781272240000,-6975.26428327,0.00034839,2]
[424919433,1781272240000,-200.0,0.00028135,2]
[424919500,1781272241000,-738.48684288,0.00034888,10]
[424919454,1781272241000,-2059.27799727,0.00034888,10]
[424920055,1781272246000,-1214.87425256,0.00034938,7]
[424920068,1781272246000,-1214.87425256,0.00034938,7]
[424920069,1781272246000,-500.0,0.00034938,7]
[424920065,1781272246000,-1214.87425256,0.00034938,7]
[424920056,1781272246000,-1214.87425256,0.00034938,7]
[424920054,1781272246000,-1214.87425256,0.00034938,7]
[424920051,1781272246000,-13473.5861148,0.00034888,10]
[424920071,1781272246000,-500.0,0.00034938,7]
[424920049,1781272246000,-4688.22900307,0.00034588,9]
[424920047,1781272246000,-311.77099693,0.00034588,9]
[424920061,1781272246000,-1214.87425256,0.00034938,7]
[424920063,1781272246000,-1214.87425256,0.00034938,7]
[424920058,1781272246000,-1214.87425256,0.00034938,7]
[424920062,1781272246000,-1214.87425256,0.00034938,7]
[424920052,1781272246000,-628.2691547,0.00034938,7]
[424920075,1781272246000,-1214.87425256,0.00034938,7]
[424920059,1781272246000,-1214.87425256,0.00034938,7]
[424920066,1781272246000,-1214.87425256,0.00034938,7]
[424920072,1781272246000,-500.0,0.00034938,7]
[424920097,1781272246000,-2386.21580178,0.00034939,2]
[424920095,1781272246000,-1214.87425256,0.00034938,7]
[424920094,1781272246000,-346.09994566,0.00034938,7]
[424920092,1781272246000,-868.7743069,0.00034938,7]
[424920087,1781272246000,-240.9199212,0.00034938,7]
[424920089,1781272246000,-1214.87425256,0.00034938,7]
[424920086,1781272246000,-382.8407007,0.00034938,7]
[424920083,1781272246000,-500.0,0.00034938,7]
[424920081,1781272246000,-500.0,0.00034938,7]
[424920084,1781272246000,-161.20901348,0.00034938,7]
[424920078,1781272246000,-500.0,0.00034938,7]
[424920080,1781272246000,-500.0,0.00034938,7]
[424920074,1781272246000,-500.0,0.00034938,7]
[424920077,1781272246000,-281.20357218,0.00034938,7]
[424920090,1781272246000,-1214.87425256,0.00034938,7]
[424921594,1781272441000,5000.0,0.00024658,30]
[424921596,1781272450000,2559.64236497,0.00024658,30]
[424921597,1781272459000,5000.0,0.00024658,30]
[424921600,1781272483000,2636.94892689,0.00024658,30]
[424921629,1781273308000,69516.058189,0.00024,30]
[424921697,1781273432000,-2000.37464901,0.0001,2]
[424921696,1781273432000,-1489.05957598,0.0001,2]
[424921699,1781273432000,-157.91199,0.00023377,2]
[424921702,1781273432000,-3698.13768899,0.00024198,60]
[424921700,1781273432000,-283.70885521,0.00023697,7]
[424921701,1781273432000,-190.62,0.00024197,6]
[424921703,1781273432000,-586.94081868,0.00024198,60]
[424921698,1781273432000,-236.79796114,0.0002302,7]
[424921749,1781273438000,-355.19694173,0.00024375,7]
[424921753,1781273438000,-363.21004133,0.00029519,2]
[424921747,1781273438000,-175.67819165,0.00024275,2]
[424921750,1781273438000,-237.826585,0.0002718,6]
[424921755,1781273438000,-951.30633999,0.00031219,6]
[424921745,1781273438000,-32404.00104717,0.00024198,60]
[424921756,1781273439000,-192.15,0.00033483,2]
[424921761,1781273439000,-187.78667639,0.00034662,2]
[424921763,1781273439000,-187.78667639,0.00034688,2]
[424921769,1781273439000,-2053.92148571,0.00034739,2]
[424921765,1781273439000,-938.57377978,0.00034688,7]
[424921767,1781273439000,-587288.13172237,0.00034739,2]
[424921758,1781273439000,-187.78667641,0.00034635,2]
[424922038,1781273441000,-3676.84145115,0.00034739,2]
[424922037,1781273441000,-751.93240077,0.00024175,2]
[424922332,1781273446000,-751.93240076,0.00025343,2]
[424922334,1781273446000,-2887.00087082,0.00034739,2]
[424922333,1781273446000,-18034.75139643,0.00034739,2]
[424922335,1781273447000,-1152.0,0.00034739,2]
[424922344,1781273642000,5000.0,0.00024658,30]
[424922353,1781274029000,440.0,0.00024657,30]
[424922363,1781274249000,500.0,0.00024253,120]
[424922364,1781274250000,516.30827863,0.00024527,120]
[424922424,1781274632000,-500.0,0.00020299,2]
[424922435,1781274632000,-1161.81434769,0.000203,2]
[424922413,1781274632000,-164.94149847,0.00020299,2]
[424922411,1781274632000,-500.0,0.00020299,2]
[424922434,1781274632000,-1161.81434769,0.000203,2]
[424922430,1781274632000,-530.637006,0.000203,2]
[424922431,1781274632000,-1161.81434769,0.000203,2]
[424922439,1781274632000,-1161.81434769,0.000203,2]
[424922415,1781274632000,-425.81278209,0.00020299,2]
[424922437,1781274632000,-356.64506667,0.000203,2]
[424922438,1781274632000,-805.16928102,0.000203,2]
[424922429,1781274632000,-1161.81434769,0.000203,2]
[424922427,1781274632000,-500.0,0.00020299,2]
[424922428,1781274632000,-500.0,0.00020299,2]
[424922436,1781274632000,-1161.81434769,0.000203,2]
[424922440,1781274632000,-519.88861525,0.000203,2]
[424922433,1781274632000,-1161.81434769,0.000203,2]
[424922426,1781274632000,-500.0,0.00020299,2]
[424922416,1781274632000,-494.43310645,0.00020299,2]
[424922418,1781274632000,-500.0,0.00020299,2]
[424922412,1781274632000,-500.0,0.00020299,2]
[424922432,1781274632000,-1161.81434769,0.000203,2]
[424922422,1781274632000,-624.31836316,0.00020299,2]
[424922420,1781274632000,-500.0,0.00020299,2]
[424922410,1781274632000,-152.496,0.00020201,2]
[424922466,1781274638000,-65.69911029,0.000203,2]
[424922465,1781274638000,-641.92573244,0.000203,2]
[424922470,1781274639000,-1161.81434769,0.000203,2]
[424922477,1781274639000,-1161.8143477,0.000203,2]
[424922478,1781274639000,-1161.8143477,0.000203,2]
[424922474,1781274639000,-1161.8143477,0.000203,2]
[424922479,1781274639000,-1185.05063465,0.000203,2]
[424922475,1781274639000,-1161.8143477,0.000203,2]
[424922468,1781274639000,-1161.81434769,0.000203,2]
[424922476,1781274639000,-1161.8143477,0.000203,2]
[424922467,1781274639000,-1096.1152374,0.000203,2]
[424922481,1781274639000,-1185.05063465,0.000203,2]
[424922473,1781274639000,-1161.81434769,0.000203,2]
[424922472,1781274639000,-1161.81434769,0.000203,2]
[424922487,1781274639000,-4093.60573274,0.00020301,10]
[424922485,1781274639000,-23372.68750282,0.00020301,10]
[424922482,1781274639000,-1185.05063465,0.000203,2]
[424922488,1781274639000,-469.58372368,0.00020301,10]
[424922486,1781274639000,-14604.56778394,0.00020301,10]
[424922480,1781274639000,-1185.05063465,0.000203,2]
[424922469,1781274639000,-1161.81434769,0.000203,2]
[424922483,1781274639000,-1185.05063465,0.000203,2]
[424922515,1781274643000,-43145.2481063,0.00020301,4]
[424922514,1781274643000,-7459.55525682,0.00020301,10]
[424922519,1781274644000,-300.0,0.00020705,2]
[424922527,1781274644000,-1162.27213225,0.00034452,2]
[424922522,1781274644000,-300.0,0.00020705,2]
[424922516,1781274644000,-2738.25598904,0.00020301,4]
[424922518,1781274644000,-203.80254571,0.00020301,3]
[424922517,1781274644000,-6733.92290136,0.00020301,4]
[424922520,1781274644000,-300.0,0.00020705,2]
[424922521,1781274644000,-300.0,0.00020705,2]
[424922525,1781274644000,-4641.1968634,0.00030063,120]
[424922528,1781274644000,-521144.33075962,0.00034736,2]
[424922523,1781274644000,-219.71006827,0.00024253,120]
[424922524,1781274644000,-219.71006827,0.00024253,120]
[424922526,1781274644000,-653.77807439,0.00034148,2]
[424922543,1781274647000,-253.7425319,0.00034736,2]
[424922544,1781274647000,-927.19930424,0.00034736,2]
[424922545,1781274647000,-4970.0212805,0.00034736,2]
[424922538,1781274647000,-1853.29910355,0.00034736,2]
[424922537,1781274647000,-5500.0,0.00034736,2]
[424922606,1781274844000,5000.0,0.00024658,30]
[424922607,1781274853000,3838.51877523,0.00024658,30]
[424922877,1781275831000,-160.45040478,0.00022577,2]
[424922874,1781275831000,-626.9028985,0.00022384,2]
[424922872,1781275831000,-212.88034413,0.00022117,2]
[424922883,1781275831000,-253.21,0.00022883,2]
[424922881,1781275831000,-158.23,0.00022883,2]
[424922870,1781275831000,-503.85043135,0.000215,2]
[424922867,1781275831000,-180.29,0.00020704,7]
[424922868,1781275831000,-1320.721,0.000215,2]
[424922866,1781275831000,-584.4,0.0002,2]
[424922869,1781275831000,-394.9089,0.000215,2]
[424922865,1781275831000,-386.9581,0.000186,2]
[424922864,1781275831000,-225.0124,0.000186,2]
[424922871,1781275831000,-582.63946865,0.000215,2]
[424922875,1781275831000,-170.29840748,0.00022525,2]
[424922888,1781275831000,-1004.6,0.00023,2]
[424922876,1781275831000,-203.46862976,0.00022525,2]
[424922873,1781275831000,-152.0,0.00022117,2]
[424922894,1781275831000,-158.23,0.00023083,2]
[424922891,1781275831000,-152.0,0.00023039,2]
[424922893,1781275831000,-153.84,0.00023083,2]
[424922889,1781275831000,-2372.418,0.00023,2]
[424922886,1781275831000,-153.84,0.00022983,2]
[424922892,1781275831000,-180.29,0.0002304,7]
[424922887,1781275831000,-158.23,0.00022983,2]
[424922884,1781275831000,-300.0,0.00022982,2]
[424922880,1781275831000,-153.84,0.00022883,2]
[424922879,1781275831000,-618.34246617,0.0002287,2]
[424922878,1781275831000,-155.39214339,0.00022577,2]
[424922890,1781275831000,-2214.777,0.00023,2]
[424922901,1781275832000,-406.93725952,0.00023343,2]
[424922904,1781275832000,-158.23,0.00023383,2]
[424922900,1781275832000,-340.59681496,0.00023343,2]
[424922899,1781275832000,-189.37141402,0.00023288,2]
[424922909,1781275832000,-158.23,0.00023483,2]
[424922907,1781275832000,-1000.0,0.000234,2]
[424922905,1781275832000,-320.90080956,0.00023397,2]
[424922895,1781275832000,-153.84,0.00023183,2]
[424922898,1781275832000,-158.23,0.00023283,2]
[424922906,1781275832000,-310.78428678,0.00023397,2]